bitfinex/quotes_ETHUSD_20211001
["timestamp","ask_amount","ask_price","bid_price","bid_amount"]
[1633122136537,2.14130688,3293.0,3292.9,0.28519917]
[1633122136936,1.13968273,3293.0,3292.9,0.28519917]
[1633122137536,1.13968273,3293.0,3292.9,0.0016838]
[1633122137736,1.13968273,3293.0,3292.9,0.08696893]
[1633122138339,2.30794842,3293.0,3292.9,0.08696893]
[1633122138736,2.30794842,3293.0,3292.9,0.17225406]
[1633122139736,1.13968273,3293.0,3292.9,0.25753919]
[1633122140639,0.182,3293.0,3292.9,0.25753919]
[1633122140839,0.182,3293.0,3292.9,0.34282432]
[1633122141740,0.182,3293.0,3292.9,1.09166866]
[1633122141939,0.182,3293.0,3292.9,0.42810945]
[1633122142540,0.1715122,3293.0,3292.9,0.42810945]
[1633122142944,1.03384686,3293.0,3292.9,0.42810945]
[1633122143143,0.1715122,3293.0,3292.9,0.42810945]
[1633122143740,0.1715122,3293.0,3292.9,0.51339458]
[1633122144742,0.1715122,3293.0,3292.9,0.59867971]
[1633122145842,0.1715122,3293.0,3292.9,0.68396484]
[1633122146643,0.17070285,3293.0,3292.9,0.68396484]
[1633122146842,0.17070285,3293.0,3292.9,0.76924997]
[1633122147044,0.17070285,3293.0,3292.9,1.62344486]
[1633122147443,0.182,3293.4,3292.9,2.68986834]
[1633122147843,0.182,3293.4,3293.0,2.43338589]
[1633122148048,0.182,3293.4,3292.9,2.77515347]
[1633122148244,0.003,3293.5,3292.9,2.77515347]
[1633122148445,0.003,3293.5,3293.4,1.79662206]
[1633122148644,0.003,3293.5,3293.4,4.553]
[1633122148843,0.003,3293.5,3293.4,4.63828513]
[1633122149245,0.003,3293.5,3293.4,0.08528513]
[1633122149644,0.90973713,3293.5,3293.4,0.08528513]
[1633122149843,1.83951427,3293.5,3293.4,0.17057026]
[1633122151445,6.57585427,3293.5,3293.4,0.17057026]
[1633122151845,0.185,3293.5,3293.4,0.17057026]
[1633122153252,0.003,3293.5,3293.4,0.17057026]
[1633122153447,0.182,3293.9,3293.4,0.17057026]
[1633122153648,0.182,3293.9,3293.5,0.003]
[1633122153847,0.132,3293.9,3293.5,0.003]
[1633122154246,0.132,3293.9,3293.5,3.03824]
[1633122154648,0.132,3293.9,3293.7,4.55274]
[1633122155447,0.132,3293.9,3293.5,3.03824]
[1633122156649,0.188,3294.3,3293.5,3.03824]
[1633122156849,0.188,3294.3,3293.9,3.03524]
[1633122157249,0.188,3294.3,3293.9,3.90036882]
[1633122157452,0.188,3294.3,3294.0,0.00319499]
[1633122157848,2.25002907,3294.2,3294.0,0.00319499]
[1633122158047,1.06596373,3294.3,3294.0,0.00319499]
[1633122158248,2.24980775,3294.2,3294.0,0.00319499]
[1633122158452,0.188,3294.3,3294.0,0.00319499]
[1633122159050,2.24981106,3294.2,3294.0,0.00319499]
[1633122159249,2.18128182,3294.1,3294.0,0.00319499]
[1633122159449,5.54632664,3294.1,3294.0,0.00319499]
[1633122159649,5.54632664,3294.1,3293.0,0.003]
[1633122159650,6.35,3294.0,3293.0,0.003]
[1633122159850,0.79127792,3293.1,3293.0,0.003]
[1633122160049,0.97327792,3293.1,3293.0,0.003]
[1633122160449,2.03313211,3293.1,3293.0,0.003]
[1633122160848,0.182,3293.1,3293.0,0.003]
[1633122162049,0.082,3293.1,3293.0,0.79013095]
[1633122163251,0.082,3293.1,3293.0,0.003]
[1633122165055,0.082,3293.1,3293.0,0.28654845]
[1633122166359,1.12781487,3293.3,3293.0,0.28654845]
[1633122166360,0.182,3293.5,3293.0,1.58054845]
[1633122166555,0.182,3293.5,3293.1,0.062684]
[1633122166757,0.182,3293.5,3293.0,0.28654845]
[1633122167554,2.24307751,3293.4,3293.0,0.28654845]
[1633122167755,0.75795012,3293.3,3293.0,0.28654845]
[1633122168156,0.75795012,3293.3,3293.1,0.00297061]
[1633122169156,0.65795012,3293.3,3293.1,0.00297061]
[1633122169961,0.18119065,3293.5,3293.1,0.00297061]
[1633122170561,0.18119065,3293.5,3293.2,0.28346576]
[1633122171363,0.18119065,3293.5,3293.2,2.31003688]
[1633122171569,0.182,3293.9,3293.2,2.31003688]
[1633122171864,0.003,3294.0,3293.5,0.4254193]
[1633122172066,0.003,3294.0,3293.9,0.09301783]
[1633122172264,0.9259387,3294.0,3293.9,0.27501783]
[1633122172468,0.9259387,3294.0,3293.9,0.09301783]
[1633122173267,0.003,3294.0,3293.9,0.09301783]
[1633122174268,0.003,3294.0,3293.9,6.95587419]
[1633122174465,0.006,3294.4,3293.9,9.60626634]
[1633122174664,0.009,3294.5,3294.0,12.4365903]
[1633122174864,0.009,3294.5,3294.4,0.02583412]
[1633122175068,0.009,3294.5,3294.4,0.20783412]
[1633122175268,0.009,3294.5,3294.4,2.28756639]
[1633122175484,0.006,3295.1,3294.7,12.33218453]
[1633122175666,0.006,3295.1,3294.8,3.1267721]
[1633122175870,0.006,3295.1,3294.8,4.731]
[1633122176267,0.00171487,3296.1,3294.8,0.20627566]
[1633122176546,0.00171487,3296.1,3295.5,0.003]
[1633122176670,0.00171487,3296.1,3295.5,4.5532]
[1633122176873,1.49016836,3296.0,3295.5,4.5502]
[1633122177068,1.49016836,3296.0,3295.6,0.97350628]
[1633122177269,0.00171487,3296.1,3295.7,2.50562535]
[1633122177470,0.00171487,3296.1,3295.9,1.35694]
[1633122177670,0.00171487,3296.1,3296.0,0.182]
[1633122177879,0.00171487,3296.1,3295.0,0.065332]
[1633122178069,0.00171487,3296.1,3295.2,0.182]
[1633122178268,0.00171487,3296.1,3295.8,0.75535826]
[1633122178478,0.00171487,3296.1,3295.7,0.062737]
[1633122178771,0.00171487,3296.1,3295.6,0.00257906]
[1633122178772,0.031166,3295.8,3295.6,0.00257906]
[1633122178969,0.031166,3295.8,3295.2,0.08757906]
[1633122179169,2.46,3295.6,3295.2,0.08757906]
[1633122179374,2.46,3295.6,3294.8,0.003]
[1633122179573,2.46,3295.6,3294.4,0.003]
[1633122179574,0.57998217,3294.7,3294.4,0.003]
[1633122179871,0.57998217,3294.7,3294.0,0.006]
[1633122179872,0.89399657,3294.5,3294.0,0.006]
[1633122180071,6.79446217,3294.7,3294.0,0.006]
[1633122180072,0.182,3294.4,3294.0,0.006]
[1633122180471,0.182,3294.4,3293.9,0.09301783]
[1633122180472,7.6165688,3294.2,3293.9,0.09301783]
[1633122180670,1.01393702,3294.1,3293.9,0.09301783]
[1633122180869,4.55446,3294.0,3293.9,0.09301783]
[1633122181073,0.09301783,3293.9,3293.5,0.18419065]
[1633122181270,4.731,3293.8,3293.5,0.18419065]
[1633122181486,4.731,3293.8,3293.6,0.28333348]
[1633122181875,4.731,3293.8,3293.0,0.003]
[1633122181876,16.42868561,3293.7,3293.0,0.003]
[1633122182071,0.031166,3293.1,3293.0,0.003]
[1633122182273,2.73937802,3293.1,3293.0,0.003]
[1633122182671,2.73937802,3293.1,3292.9,0.17057026]
[1633122182672,4.9,3293.0,3292.9,0.17057026]
[1633122182877,4.9,3293.0,3291.8,0.006]
[1633122182878,1.86300884,3292.2,3291.8,0.006]
[1633122183073,1.86300884,3292.2,3291.0,0.003]
[1633122183074,6.49414152,3291.8,3291.0,0.003]
[1633122183272,0.6199,3291.4,3291.0,0.003]
[1633122183473,0.87348107,3291.1,3291.0,0.003]
[1633122183671,0.87348107,3291.1,3290.9,2.02399996]
[1633122183672,8.09016368,3291.1,3290.9,2.02399996]
[1633122183972,8.09016368,3291.1,3290.9,0.43600004]
[1633122183973,3.96438304,3291.0,3290.9,0.43600004]
[1633122184170,3.96438304,3291.0,3289.9,0.006]
[1633122184171,3.0398892,3290.5,3289.9,0.006]
[1633122184373,0.92018302,3290.4,3289.7,0.006]
[1633122184578,4.549,3290.2,3289.7,0.006]
[1633122184773,4.549,3290.2,3289.4,0.009]
[1633122184774,0.182,3290.1,3289.4,0.009]
[1633122184971,0.86238493,3290.0,3289.4,1.0149561]
[1633122185171,2.94511655,3289.9,3289.4,0.009]
[1633122185371,0.182,3289.9,3289.5,0.009]
[1633122185571,0.182,3289.9,3289.1,0.009]
[1633122186173,0.71179242,3289.3,3289.1,0.009]
[1633122186371,0.182,3289.2,3289.1,0.009]
[1633122186772,0.182,3289.2,3289.0,0.012]
[1633122186972,0.32569203,3289.2,3289.1,0.14317331]
[1633122187177,1.23759203,3289.2,3289.1,0.14317331]
[1633122187373,1.23759203,3289.2,3289.1,0.15217331]
[1633122187573,1.22710423,3289.2,3289.1,0.15217331]
[1633122188175,1.22710423,3289.2,3289.1,1.44617331]
[1633122188373,3.0397321,3290.0,3289.2,10.45]
[1633122188574,3.0397321,3290.0,3289.2,1.50512206]
[1633122188575,0.182,3289.9,3289.2,1.50512206]
[1633122188773,0.182,3289.9,3289.3,0.009]
[1633122189173,0.182,3289.9,3289.3,0.0122534]
[1633122189575,0.182,3289.9,3289.4,0.009]
[1633122189974,0.182,3289.9,3289.4,1.13185727]
[1633122190174,0.182,3289.9,3289.4,0.009]
[1633122190376,0.182,3289.9,3289.5,0.86909616]
[1633122190575,0.182,3289.9,3289.5,0.009]
[1633122190779,0.182,3289.9,3289.6,0.006]
[1633122190977,0.182,3289.9,3289.4,0.009]
[1633122191675,0.94116508,3289.6,3289.4,0.009]
[1633122191875,0.182,3289.5,3289.4,0.009]
[1633122192284,1.21485084,3289.2,3289.1,0.14317331]
[1633122192479,1.39685084,3289.2,3288.0,0.003]
[1633122192677,1.39685084,3289.2,3288.0,0.009]
[1633122192880,1.39685084,3289.2,3287.3,0.012]
[1633122192881,5.95859084,3289.2,3287.3,0.012]
[1633122193078,3.90827796,3289.1,3287.3,0.012]
[1633122193278,1.54380405,3288.6,3287.7,0.93902275]
[1633122193494,0.182,3288.5,3287.7,0.93902275]
[1633122193678,0.182,3288.5,3287.8,0.009]
[1633122194078,3.0413069,3288.1,3287.8,0.009]
[1633122194281,4.731,3288.0,3287.8,0.009]
[1633122194548,4.731,3288.0,3287.0,0.015]
[1633122195081,4.731,3288.0,3287.1,0.89647362]
[1633122195082,0.89112799,3287.7,3287.1,0.89647362]
[1633122195279,0.003,3287.5,3286.5,0.060538]
[1633122195479,0.182,3287.4,3286.5,0.060538]
[1633122195680,0.182,3287.4,3286.5,0.003]
[1633122195883,4.28280991,3287.4,3286.5,0.003]
[1633122196080,4.28280991,3287.4,3286.2,0.003]
[1633122196277,0.93641166,3287.2,3286.4,1.02775514]
[1633122196480,3.224252,3287.1,3286.4,1.02775514]
[1633122196678,3.224252,3287.1,3286.5,0.003]
[1633122197079,4.41419138,3287.0,3286.5,0.003]
[1633122197280,0.182,3286.9,3286.5,0.003]
[1633122197545,0.182,3286.9,3286.1,0.003]
[1633122197878,0.07119823,3286.8,3286.2,0.2158987]
[1633122198078,1.095711,3286.7,3286.2,0.2158987]
[1633122198278,0.74023401,3286.6,3286.3,0.003]
[1633122198480,5.1908,3286.4,3286.2,0.2158987]
[1633122198779,0.47084042,3286.3,3286.2,0.2158987]
[1633122198981,0.47084042,3286.3,3285.4,0.006]
[1633122198982,1.63367611,3285.7,3285.4,0.006]
[1633122199182,0.182,3285.6,3285.4,0.006]
[1633122199580,0.33003722,3285.2,3285.1,0.0044045]
[1633122199778,5.06103722,3285.2,3285.1,0.0044045]
[1633122199977,5.06103722,3285.2,3285.1,2.4644045]
[1633122200187,4.731,3285.2,3285.1,0.33003722]
[1633122200580,4.731,3285.2,3285.1,2.36]
[1633122201180,4.731,3285.2,3284.2,0.003]
[1633122201181,5.9,3285.1,3284.2,0.003]
[1633122201380,5.9,3285.0,3284.2,0.003]
[1633122201580,4.731,3285.1,3284.2,0.003]
[1633122201581,0.182,3284.9,3284.2,2.463]
[1633122201781,0.182,3284.8,3284.2,2.463]
[1633122201980,0.182,3284.8,3284.3,0.85484098]
[1633122202380,0.182,3284.8,3284.4,0.003]
[1633122202784,0.182,3284.8,3284.3,0.003]
[1633122203180,0.182,3284.8,3284.3,2.463]
[1633122203581,0.36068242,3284.8,3284.4,0.11158072]
[1633122203980,1.00223877,3284.7,3284.5,0.003]
[1633122204184,4.731,3284.6,3284.5,0.003]
[1633122204383,5.86376598,3284.6,3284.5,0.003]
[1633122204581,6.28273175,3284.6,3284.5,0.003]
[1633122204781,6.28113175,3284.6,3284.5,0.003]
[1633122204981,6.28113175,3284.6,3284.0,0.009]
[1633122204982,0.10858072,3284.4,3284.0,0.009]
[1633122205183,4.549,3284.2,3284.0,0.009]
[1633122205388,0.182,3284.1,3284.0,0.009]
[1633122209047,0.41485039,3284.1,3284.0,0.009]
[1633122209247,2.23189755,3284.1,3284.0,0.009]
[1633122209452,5.75,3284.0,3283.8,0.006]
[1633122209651,0.182,3284.0,3283.8,0.006]
[1633122209849,0.3028,3284.0,3283.6,0.006]
[1633122210248,1.65399492,3283.8,3283.6,0.006]
[1633122210449,0.182,3283.7,3283.6,0.006]
[1633122212654,3.0461186,3284.0,3283.6,0.006]
[1633122212854,1.002666,3283.9,3283.6,0.006]
[1633122213261,0.146,3283.9,3283.6,0.006]
[1633122213454,0.146,3283.9,3283.4,0.90456745]
[1633122213654,0.146,3283.9,3283.2,0.006]
[1633122214455,0.23272796,3283.8,3283.2,0.006]
[1633122214658,0.146,3283.7,3283.4,0.05462295]
[1633122215656,0.146,3283.7,3283.4,1.17247355]
[1633122216058,0.146,3283.7,3283.4,0.05462295]
[1633122218062,0.23272796,3283.8,3283.4,0.05462295]
[1633122218859,0.23272796,3283.8,3283.6,1.04497792]
[1633122219261,0.23272796,3283.8,3283.4,0.05462295]
[1633122220059,0.003,3284.0,3283.6,1.294]
[1633122220259,0.003,3284.0,3283.5,0.94377498]
[1633122220863,0.003,3284.0,3283.6,3.29447698]
[1633122221067,0.003,3284.0,3283.6,3.32148822]
[1633122221261,0.003,3284.0,3283.6,0.88971892]
[1633122221861,0.003,3284.0,3283.5,0.00342001]
[1633122222165,0.003,3284.0,3283.5,0.99462155]
[1633122222765,0.003,3284.0,3283.5,0.00342001]
[1633122224163,0.003,3284.0,3283.9,1.14748597]
[1633122225067,0.003,3284.0,3283.9,1.90003231]
[1633122225464,0.23581404,3284.0,3283.9,1.95453883]
[1633122225864,0.23581404,3284.0,3283.9,3.24853883]
[1633122226070,0.23581404,3284.0,3283.9,5.09047631]
[1633122227066,0.10858072,3284.4,3284.0,6.8]
[1633122227267,0.10858072,3284.4,3283.9,3.79647631]
[1633122227467,0.10858072,3284.4,3284.1,1.294]
[1633122227666,0.10858072,3284.4,3284.0,3.5]
[1633122228267,0.10858072,3284.4,3284.1,5.1739339]
[1633122228468,0.10858072,3284.4,3284.2,1.294]
[1633122228670,0.10858072,3284.4,3284.1,3.6522239]
[1633122229066,0.10858072,3284.4,3284.2,3.5]
[1633122229269,0.10858072,3284.4,3284.3,3.5]
[1633122229669,0.10858072,3284.4,3284.3,4.794]
[1633122230067,0.10858072,3284.4,3284.3,8.294]
[1633122230469,0.10858072,3284.4,3284.3,28.44450767]
[1633122230669,0.149,3285.5,3284.4,12.5]
[1633122230670,0.003,3285.5,3284.4,12.5]
[1633122230871,0.003,3285.5,3284.9,0.02488221]
[1633122231274,0.77790746,3285.4,3284.9,1.17388201]
[1633122232273,0.77790746,3285.4,3284.9,5.7132598]
[1633122232471,0.77041966,3285.4,3285.0,3.15]
[1633122232671,0.77041966,3285.4,3284.9,5.7132598]
[1633122233876,0.003,3285.5,3284.9,5.7132598]
[1633122234871,0.003,3285.5,3285.2,0.78246222]
[1633122235072,0.003,3285.5,3285.3,4.56473]
[1633122235272,0.003,3285.5,3285.4,1.08143303]
[1633122235873,0.003,3285.5,3285.3,4.56473]
[1633122236073,0.003,3285.5,3284.4,0.00329627]
[1633122236074,0.60802666,3285.4,3284.4,0.00329627]
[1633122236580,0.8956362,3284.9,3284.6,0.17058102]
[1633122236779,0.146,3284.8,3284.6,0.17058102]
[1633122236976,0.146,3284.8,3284.4,0.88369832]
[1633122237775,0.146,3284.8,3284.4,0.00329627]
[1633122238374,0.80603847,3284.7,3284.4,0.00329627]
[1633122238576,0.146,3284.6,3284.4,0.00329627]
[1633122239777,0.146,3284.6,3284.5,0.72127914]
[1633122240176,0.26265237,3285.2,3284.5,0.72127914]
[1633122240976,0.26265237,3285.2,3285.1,1.00493635]
[1633122241176,0.26265237,3285.2,3284.6,0.00321932]
[1633122241376,0.51621455,3285.2,3284.6,0.00321932]
[1633122241779,0.39956218,3285.2,3284.7,0.17058102]
[1633122241976,0.21758265,3285.1,3284.7,0.17058102]
[1633122242176,0.146,3285.0,3284.7,0.17058102]
[1633122242376,0.146,3284.9,3284.6,0.00321932]
[1633122242577,0.146,3284.8,3284.6,0.00321932]
[1633122245179,0.146,3284.8,3284.7,4.56572]
[1633122246982,0.146,3284.8,3284.6,0.00321932]
[1633122247579,0.146,3284.8,3284.5,7.03933026]
[1633122247978,0.2625914,3284.8,3284.5,7.03933026]
[1633122248780,0.2625914,3284.8,3284.6,1.294]
[1633122248781,0.00608577,3284.8,3284.6,1.294]
[1633122248983,0.00608577,3284.8,3284.5,1.01058026]
[1633122249181,0.00608577,3284.8,3284.6,1.59648942]
[1633122249585,0.00608577,3284.8,3284.7,6.08685]
[1633122249980,0.00608577,3284.8,3284.7,7.38085]
[1633122251182,0.46202666,3285.4,3284.7,7.38085]
[1633122251383,0.46202666,3285.4,3285.3,0.10067424]
[1633122251585,0.46202666,3285.4,3285.3,3.01849438]
[1633122252189,0.46202666,3285.4,3285.3,3.86017474]
[1633122252386,0.46202666,3285.4,3285.3,26.20337474]
[1633122252584,0.003,3285.5,3285.4,1.87754655]
[1633122252787,0.003,3285.5,3285.4,19.65754655]
[1633122253386,0.003,3285.5,3285.4,22.28530575]
[1633122253784,0.003,3285.5,3285.4,5.79930575]
[1633122254186,0.06147957,3285.5,3285.4,23.57930575]
[1633122254587,0.06147957,3285.5,3285.4,5.79930575]
[1633122255787,0.06147957,3285.5,3285.4,6.12299227]
[1633122255987,1.0416688,3286.8,3285.5,11.75]
[1633122256186,1.0416688,3286.8,3285.6,6.08365]
[1633122256388,1.0416688,3286.8,3285.9,0.81037942]
[1633122256990,0.146,3286.8,3285.9,1.7446565]
[1633122257190,0.146,3286.8,3285.9,6.3074665]
[1633122257393,0.146,3286.8,3285.9,7.6014665]
[1633122259691,0.03237461,3286.0,3285.9,7.6014665]
[1633122260559,0.03237461,3286.0,3285.9,7.92628143]
[1633122261355,0.03237461,3286.0,3285.9,6.63228143]
[1633122261556,0.03237461,3286.0,3285.9,6.3074665]
[1633122261756,0.03237461,3286.0,3285.9,6.63278719]
[1633122262956,0.03237461,3286.0,3285.9,7.6014665]
[1633122263157,0.003,3286.0,3285.9,7.6014665]
[1633122263355,0.003,3286.0,3285.9,6.3074665]
[1633122263959,0.003,3286.0,3285.9,6.63349577]
[1633122264759,0.003,3286.0,3285.9,7.92749577]
[1633122264959,0.03237475,3286.0,3285.9,7.92749577]
[1633122265166,0.03237475,3286.0,3285.9,5.92311635]
[1633122265363,0.37801783,3285.9,3284.5,0.003]
[1633122265565,0.030762,3285.5,3285.0,0.32909223]
[1633122265762,0.146,3285.4,3285.0,0.32909223]
[1633122265962,0.146,3285.4,3285.0,0.003]
[1633122265963,1.6629,3285.4,3285.0,0.003]
[1633122266164,2.46294469,3285.3,3285.0,0.003]
[1633122266364,4.7124,3285.2,3285.0,0.003]
[1633122266582,6.4,3285.1,3284.9,0.95902039]
[1633122266767,0.146,3285.0,3284.9,0.58100256]
[1633122266967,0.146,3285.0,3284.5,7.37]
[1633122267367,0.146,3285.0,3284.7,1.294]
[1633122267568,0.146,3285.0,3284.5,9.833]
[1633122267773,0.149,3285.5,3284.6,0.33043699]
[1633122268169,0.149,3285.5,3285.4,5.41]
[1633122268170,0.003,3285.5,3285.4,5.41]
[1633122268372,0.003,3285.5,3285.4,8.35684249]
[1633122268768,0.003,3285.5,3285.4,8.61479281]
[1633122269168,0.003,3285.5,3285.4,9.77280462]
[1633122269367,0.003,3285.5,3285.4,8.77046293]
[1633122269568,0.003,3285.5,3285.4,4.20672293]
[1633122270374,5.67188069,3285.5,3285.4,3.04871112]
[1633122270569,5.67188069,3285.5,3285.4,2.46]
[1633122270570,1.13556091,3285.5,3285.4,2.46]
[1633122271571,0.17824022,3285.5,3285.4,2.46]
[1633122271970,0.17824022,3285.5,3285.4,2.79157467]
[1633122272574,0.17824022,3285.5,3285.4,3.73691391]
[1633122272774,0.03224022,3285.5,3285.4,3.73691391]
[1633122272978,0.03224022,3285.5,3285.4,3.73969025]
[1633122273174,0.03224022,3285.5,3285.4,2.79435101]
[1633122274176,0.98882007,3285.5,3285.4,2.79435101]
[1633122274376,0.98882007,3285.5,3285.4,2.72072666]
[1633122274576,0.149,3285.5,3285.4,3.05247457]
[1633122275178,0.149,3285.5,3285.4,1.60159721]
[1633122275580,0.149,3285.5,3285.4,2.43632654]
[1633122275978,0.149,3285.5,3285.4,2.17837622]
[1633122276176,0.17824036,3285.5,3285.4,2.17837622]
[1633122277275,0.03224036,3285.5,3285.4,2.17837622]
[1633122277676,0.02175256,3285.5,3285.4,2.17837622]
[1633122279678,0.003,3286.0,3285.5,12.5]
[1633122279880,0.003,3286.5,3285.4,3.47237622]
[1633122279881,0.003,3286.5,3286.4,0.82378936]
[1633122280278,0.003,3286.5,3286.4,1.15521879]
[1633122280481,0.003,3286.5,3286.4,5.71772879]
[1633122280680,0.003,3286.5,3286.4,6.55629732]
[1633122280881,0.003,3286.5,3286.4,7.74951835]
[1633122281479,0.01908767,3286.5,3286.4,7.74951835]
[1633122281879,0.01908767,3286.5,3286.4,8.64684778]
[1633122283283,0.01908767,3286.5,3286.4,9.94084778]
[1633122283487,0.003,3287.0,3286.4,9.94346976]
[1633122283681,0.003,3287.0,3286.5,2.67775929]
[1633122283879,0.003,3287.0,3286.6,0.33097172]
[1633122284081,0.003,3287.0,3286.7,0.33094133]
[1633122284279,0.003,3287.0,3286.4,3.75553033]
[1633122284280,0.003,3287.0,3286.8,0.33092836]
[1633122284482,0.003,3287.0,3286.9,6.57178403]
[1633122285281,0.003,3287.0,3286.9,6.85190011]
[1633122286485,0.003,3287.0,3286.9,8.14590011]
[1633122287083,0.003,3287.0,3286.9,7.86578403]
[1633122289489,0.003,3287.0,3286.9,6.57178403]
[1633122290686,0.003,3287.0,3286.9,6.85190011]
[1633122291886,0.003,3287.0,3286.9,6.11857306]
[1633122292290,0.003,3287.0,3286.9,0.33093857]
[1633122292691,0.003,3287.0,3286.5,0.33091106]
[1633122292890,0.003,3287.0,3286.5,1.21848447]
[1633122293560,0.003,3287.0,3286.8,0.98922731]
[1633122293689,0.003,3287.0,3286.8,5.55195731]
[1633122293894,0.003,3287.0,3286.9,0.33093823]
[1633122294088,0.003,3287.0,3286.9,0.33347941]
[1633122294489,0.003,3287.0,3286.9,0.00255258]
[1633122295291,0.003,3287.0,3286.9,6.41643461]
[1633122296291,0.003,3287.0,3286.9,6.69655069]
[1633122296560,0.003,3288.0,3287.0,0.88228553]
[1633122296693,0.183,3287.9,3287.1,0.33100781]
[1633122297095,0.183,3287.9,3287.0,0.88528553]
[1633122297291,0.033,3287.9,3287.0,0.88528553]
[1633122297492,0.7152838,3287.8,3287.1,0.33113397]
[1633122297692,0.183,3287.7,3287.3,1.04041587]
[1633122297891,0.183,3287.7,3287.0,0.88528553]
[1633122298893,0.183,3287.7,3287.4,1.0547161]
[1633122299096,0.183,3287.7,3287.0,0.88528553]
[1633122299292,0.183,3287.7,3287.1,0.33124645]
[1633122300092,0.89620467,3287.6,3287.1,0.33124645]
[1633122300290,1.07920467,3287.6,3287.1,0.33124645]
[1633122300897,1.07920467,3287.6,3287.2,0.33130635]
[1633122301092,1.07920467,3287.6,3287.0,0.003]
[1633122301292,1.96455373,3287.6,3287.0,0.33433715]
[1633122301495,1.07920467,3287.6,3287.0,0.33433715]
[1633122301892,1.07920467,3287.6,3287.1,0.27999989]
[1633122302559,2.18957347,3287.6,3287.1,0.27999989]
[1633122302701,2.18957347,3287.6,3287.0,0.003]
[1633122302894,1.2933688,3287.6,3287.0,0.33132263]
[1633122303092,0.003,3287.5,3286.5,2.31820159]
[1633122303293,0.003,3287.5,3286.7,4.56295]
[1633122303493,0.003,3287.5,3286.8,0.33132686]
[1633122304092,0.85078328,3287.4,3286.9,0.87036388]
[1633122304302,0.003,3287.5,3287.0,0.33132659]
[1633122305494,0.003,3287.5,3287.0,4.89380659]
[1633122305694,0.003,3287.5,3287.1,0.3313016]
[1633122306094,0.003,3287.5,3286.9,0.00223824]
[1633122306293,0.003,3287.5,3286.9,0.33352585]
[1633122306897,0.003,3287.5,3287.3,1.07396389]
[1633122307497,0.003,3287.5,3287.0,0.28001648]
[1633122307695,0.003,3287.5,3287.1,0.33127238]
[1633122307900,0.003,3287.5,3287.4,0.00218415]
[1633122308560,0.003,3287.5,3287.4,4.56415415]
[1633122309295,0.003,3287.5,3287.4,5.85815415]
[1633122309500,0.003,3287.5,3287.4,8.65644902]
[1633122309696,0.003,3287.5,3287.4,7.00668883]
[1633122309897,0.003,3288.0,3287.9,1.93892384]
[1633122310095,0.003,3288.0,3287.9,2.26998135]
[1633122310699,0.003,3288.0,3287.9,9.08541139]
[1633122310897,0.003,3288.0,3287.9,12.31735298]
[1633122311094,0.003,3288.0,3287.9,10.90865338]
[1633122311297,0.003,3288.5,3288.0,12.05]
[1633122311496,0.003,3288.5,3288.1,0.51374262]
[1633122311695,0.003,3288.5,3288.2,2.65973838]
[1633122311897,0.003,3288.5,3288.4,5.59251667]
[1633122312100,0.003,3288.5,3288.4,11.15455854]
[1633122312295,0.003,3288.5,3288.4,8.87080525]
[1633122312896,0.003,3288.5,3288.4,10.44442353]
[1633122314096,0.003,3288.5,3288.4,11.33967635]
[1633122315101,0.003,3288.5,3288.4,10.44442353]
[1633122315296,0.003,3288.5,3288.4,9.15042353]
[1633122315697,0.003,3288.5,3288.4,10.44442353]
[1633122318697,0.003,3288.5,3288.4,10.44645345]
[1633122320097,0.003,3288.5,3288.4,10.11595329]
[1633122320300,0.003,3288.5,3288.4,10.44581791]
[1633122320497,0.003,3288.5,3288.4,10.11595329]
[1633122321100,1.21485084,3289.2,3288.5,6.15]
[1633122321301,1.21485084,3289.2,3288.8,1.62025055]
[1633122321700,1.21485084,3289.2,3288.9,5.09664176]
[1633122321898,1.21485084,3289.2,3288.9,2.05772163]
[1633122322299,1.21485084,3289.2,3288.9,6.61574163]
[1633122322503,1.20736304,3289.2,3289.0,3.65]
[1633122322700,1.20736304,3289.2,3288.9,6.61574163]
[1633122323205,0.003,3290.0,3289.3,12.5]
[1633122323400,0.003,3290.0,3289.8,0.070023]
[1633122323601,0.003,3290.0,3289.9,4.55642]
[1633122323800,0.028769,3291.4,3289.9,4.83555751]
[1633122324000,0.003,3291.5,3290.1,4.67647775]
[1633122324300,0.003,3291.5,3290.2,0.183]
[1633122324500,0.003,3291.5,3290.2,4.73938]
[1633122324701,0.003,3291.5,3290.3,1.294]
[1633122324901,0.003,3291.5,3290.3,0.33445095]
[1633122325113,0.003,3291.5,3290.4,8.22241806]
[1633122325303,0.003,3291.5,3290.9,1.52320059]
[1633122325502,0.003,3291.5,3290.9,3.26680059]
[1633122325706,0.003,3291.5,3290.9,6.48195]
[1633122325902,0.003,3291.5,3290.9,7.68099171]
[1633122326302,0.003,3291.5,3290.9,8.42519272]
[1633122326702,0.003,3291.5,3290.9,5.93739171]
[1633122327303,0.003,3291.5,3290.9,0.183]
[1633122327504,0.003,3291.5,3290.4,6.07445]
[1633122327706,0.003,3291.5,3290.7,0.83118913]
[1633122327905,0.003,3291.5,3290.8,4.55638]
[1633122328303,0.003,3291.5,3290.9,1.07001391]
[1633122329303,0.003,3291.5,3290.9,7.14473391]
[1633122330910,0.73433428,3291.4,3290.9,7.14473391]
[1633122331104,0.73433428,3291.4,3290.9,6.07472]
[1633122331506,0.68733428,3291.4,3290.9,6.07472]
[1633122331706,0.68733428,3291.4,3290.5,0.003]
[1633122332104,0.68733428,3291.4,3290.6,1.21366288]
[1633122332303,0.68733428,3291.4,3290.9,0.84735571]
[1633122332568,0.003,3291.5,3290.9,0.84735571]
[1633122333304,0.94387533,3291.1,3290.9,0.84735571]